bitfinex-derivatives/quotes_BTCF0:USTF0_20250325
["timestamp","ask_amount","ask_price","bid_price","bid_amount"]
[1742914214361,0.31365747,88136.0,88135.0,0.0006]
[1742914214564,0.0567269,88131.0,88129.0,0.0567275]
[1742914214761,0.1134576,88128.0,88127.0,0.17147949]
[1742914214962,0.11433761,88128.0,88127.0,0.17147949]
[1742914215168,0.43075761,88128.0,88127.0,0.00197389]
[1742914215371,0.43075761,88128.0,88104.0,0.3608]
[1742914215372,0.1134782,88112.0,88104.0,0.3608]
[1742914215570,0.1134873,88105.0,88104.0,0.3608]
[1742914215763,0.1134873,88105.0,88104.0,0.3914]
[1742914215764,0.1147673,88105.0,88104.0,0.3914]
[1742914216075,0.00128,88105.0,88104.0,0.4748886]
[1742914216279,0.3121673,88105.0,88104.0,0.4748886]
[1742914216581,0.19868,88105.0,88104.0,0.48943003]
[1742914216874,0.00128,88105.0,88104.0,0.48943003]
[1742914217071,0.1134873,88105.0,88104.0,0.4748886]
[1742914217275,0.2128073,88105.0,88104.0,0.4748886]
[1742914217477,0.09932,88105.0,88104.0,0.4748886]
[1742914217661,0.2128073,88105.0,88104.0,0.4778886]
[1742914217976,0.3122073,88105.0,88104.0,0.4778886]
[1742914218475,0.19872,88105.0,88104.0,0.4778886]
[1742914218674,0.3122073,88105.0,88104.0,0.3644]
[1742914220171,0.3122073,88105.0,88104.0,0.4778886]
[1742914220569,0.6730073,88105.0,88104.0,0.0036]
[1742914220770,0.6730073,88105.0,88104.0,0.003]
[1742914220978,0.6730073,88105.0,88104.0,0.00364]
[1742914221566,0.1134924,88101.0,88100.0,0.1]
[1742914221769,0.2336924,88101.0,88100.0,0.1]
[1742914222070,0.1135195,88080.0,88062.0,0.3608]
[1742914222272,0.1135298,88072.0,88051.0,0.1033]
[1742914222572,0.47588981,88072.0,88056.0,0.01047165]
[1742914222982,0.4861454,88072.0,88063.0,0.0006245]
[1742914223580,0.3726156,88072.0,88063.0,0.0006245]
[1742914223780,0.4913356,88072.0,88063.0,0.0006245]
[1742914223990,0.6048654,88072.0,88066.0,0.0999]
[1742914224167,0.0567674,88069.0,88066.0,0.0999]
[1742914224475,0.00156001,88069.0,88066.0,0.0999]
[1742914225070,0.17186321,88069.0,88066.0,0.0999]
[1742914225264,0.00156001,88069.0,88066.0,0.0999]
[1742914225872,0.11509431,88069.0,88066.0,0.0999]
[1742914226079,0.00156001,88069.0,88068.0,0.3608]
[1742914226275,0.0567624,88076.0,88068.0,0.3608]
[1742914226580,8e-05,88070.0,88068.0,0.3608]
[1742914226879,8e-05,88070.0,88069.0,1.5]
[1742914227076,0.00017028,88080.0,88069.0,1.5]
[1742914227279,0.00017028,88080.0,88076.0,0.3608]
[1742914227871,0.17045398,88080.0,88076.0,0.3608]
[1742914228275,0.00017028,88080.0,88076.0,0.3608]
[1742914228973,0.17045268,88080.0,88076.0,0.3608]
[1742914229173,0.00017028,88080.0,88076.0,0.3608]
[1742914230775,0.00017028,88080.0,88077.0,0.0973]
[1742914231078,0.00169028,88080.0,88077.0,0.0973]
[1742914231272,0.00017028,88080.0,88078.0,0.11876]
[1742914231579,0.00017028,88080.0,88079.0,0.1004]
[1742914232281,0.00017028,88080.0,88079.0,1.70853794]
[1742914234281,0.00017028,88080.0,88079.0,1.71053794]
[1742914234483,0.00017028,88080.0,88079.0,1.82929794]
[1742914235083,0.05152789,88935.0,88079.0,1.97929794]
[1742914235084,0.3608,88115.0,88079.0,1.97929794]
[1742914235286,0.101,88114.0,88100.0,0.3608]
[1742914235477,0.1134848,88107.0,88101.0,0.2971]
[1742914235777,0.0567405,88110.0,88101.0,0.2971]
[1742914235981,0.101,88106.0,88101.0,0.2971]
[1742914236180,0.00192,88104.0,88101.0,0.30722132]
[1742914236684,0.0004,88104.0,88101.0,0.30722132]
[1742914236872,0.00196001,88104.0,88101.0,0.30722132]
[1742914237275,0.0004,88104.0,88101.0,0.30722132]
[1742914237977,0.0004,88104.0,88102.0,1.5]
[1742914238379,0.0004,88104.0,88103.0,0.1924]
[1742914238581,8e-05,88108.0,88103.0,0.2024]
[1742914239292,8e-05,88108.0,88104.0,1.5]
[1742914239786,0.1017,88110.0,88105.0,0.1924]
[1742914240087,0.1017,88110.0,88108.0,0.3608]
[1742914240292,0.1017,88110.0,88109.0,0.1886]
[1742914240483,0.10322,88110.0,88109.0,0.1886]
[1742914241176,0.10322,88110.0,88103.0,0.004]
[1742914241177,0.1134886,88104.0,88103.0,0.004]
[1742914241471,0.4768086,88104.0,88103.0,0.004]
[1742914241676,0.1160086,88104.0,88103.0,0.004]
[1742914242073,0.6691086,88104.0,88103.0,0.004]
[1742914242281,0.1134989,88096.0,88095.0,0.00045405]
[1742914242484,0.1150189,88096.0,88095.0,0.00045405]
[1742914243287,0.3067189,88096.0,88095.0,0.00045405]
[1742914244092,0.3067189,88096.0,88095.0,0.00345405]
[1742914244785,0.19322,88096.0,88095.0,0.19535405]
[1742914245491,0.3067189,88096.0,88095.0,0.19535405]
[1742914245690,0.3067189,88096.0,88095.0,0.00345405]
[1742914247790,0.3067189,88096.0,88095.0,0.00745405]
[1742914248886,0.3067189,88096.0,88095.0,1.50745405]
[1742914249295,0.3051989,88096.0,88095.0,0.00745405]
[1742914249480,0.30675891,88096.0,88095.0,0.00745405]
[1742914249686,0.30675891,88096.0,88095.0,0.19445405]
[1742914250595,0.30675891,88096.0,88095.0,0.00745405]
[1742914253288,0.09706001,88096.0,88095.0,0.00745405]
[1742914253492,0.00156001,88096.0,88095.0,0.19775405]
[1742914253685,0.00156001,88096.0,88095.0,0.29085405]
[1742914253880,0.10016001,88096.0,88095.0,0.29085405]
[1742914254395,0.0986,88096.0,88095.0,0.29085405]
[1742914254590,0.10008,88096.0,88095.0,0.29085405]
[1742914254798,0.2135789,88096.0,88095.0,0.10555405]
[1742914254993,0.21365891,88096.0,88095.0,0.10555405]
[1742914255291,0.192,88096.0,88095.0,0.10555405]
[1742914255487,0.10008,88096.0,88095.0,0.20455405]
[1742914255999,0.0986,88096.0,88095.0,0.20455405]
[1742914256398,0.10008,88096.0,88095.0,0.20455405]
[1742914257990,0.10008,88096.0,88095.0,0.10555405]
[1742914258194,0.2135789,88096.0,88095.0,0.10555405]
[1742914258496,0.2135789,88096.0,88095.0,0.00745405]
[1742914258700,0.3134789,88096.0,88095.0,0.00745405]
[1742914260587,0.3134789,88096.0,88081.0,0.1924]
[1742914260588,0.1135169,88082.0,88081.0,0.1924]
[1742914260794,0.1135401,88066.0,88063.0,0.00045422]
[1742914260995,0.0567676,88068.0,88063.0,0.00045422]
[1742914261193,0.00148,88068.0,88063.0,0.00045422]
[1742914261697,0.00148,88068.0,88067.0,0.3608]
[1742914261892,0.00017028,88074.0,88067.0,0.3608]
[1742914262093,0.00165028,88074.0,88068.0,0.1942]
[1742914262393,0.113531,88072.0,88069.0,0.0948]
[1742914262594,0.1136111,88071.0,88070.0,0.0944]
[1742914262899,0.2091911,88071.0,88070.0,0.0944]
[1742914263094,0.31188147,88071.0,88070.0,0.0944]
[1742914263396,0.31188147,88071.0,88067.0,0.3608]
[1742914263397,0.1135349,88068.0,88067.0,0.3608]
[1742914263605,0.1150149,88068.0,88067.0,0.3608]
[1742914264405,0.1150149,88068.0,88064.0,0.0944]
[1742914264406,0.1135388,88065.0,88064.0,0.0944]
[1742914264603,0.11509881,88065.0,88064.0,0.0944]
[1742914265799,0.00156001,88065.0,88064.0,0.1868]
[1742914266007,0.00156001,88065.0,88064.0,0.5476]
[1742914266397,0.11509881,88065.0,88064.0,0.5476]
[1742914267399,0.00156001,88065.0,88064.0,0.5476]
[1742914267610,0.00156001,88065.0,88064.0,0.5506]
[1742914268105,0.00156001,88065.0,88064.0,2.0506]
[1742914268313,8e-05,88067.0,88064.0,2.0506]
[1742914268496,0.13578998,88072.0,88065.0,0.3608]
[1742914268692,0.13567144,88073.0,88065.0,0.3708]
[1742914268909,0.00017028,88079.0,88072.0,0.3608]
[1742914269094,0.20265998,88088.0,88078.0,0.3608]
[1742914269296,0.20421999,88088.0,88087.0,0.3608]
[1742914269501,0.57554365,88088.0,88078.0,0.3608]
[1742914269697,0.57554365,88088.0,88066.0,0.0978]
[1742914269698,0.1135308,88072.0,88066.0,0.0978]
[1742914269894,0.0972,88071.0,88066.0,0.0978]
[1742914270093,0.09868,88071.0,88066.0,0.0978]
[1742914270503,0.00148,88071.0,88066.0,0.0978]
[1742914270711,0.001,88072.0,88066.0,0.0978]
[1742914271107,0.001,88072.0,88067.0,0.3608]
[1742914271408,0.001,88072.0,88067.0,0.3708]
[1742914271911,0.001,88072.0,88068.0,0.0964]
[1742914272210,0.001,88072.0,88068.0,0.2011]
[1742914272511,0.00017028,88077.0,88068.0,0.2011]
[1742914272703,0.00017028,88077.0,88076.0,0.3608]
[1742914273402,0.00017028,88077.0,88076.0,1.8608]
[1742914275611,8e-05,88081.0,88076.0,1.8608]
[1742914276113,0.0004,88088.0,88077.0,0.1942]
[1742914276315,0.0004,88088.0,88084.0,0.3608]
[1742914276518,0.00188,88088.0,88085.0,0.1846]
[1742914276700,0.0004,88088.0,88085.0,0.1846]
[1742914277018,0.0004,88088.0,88085.0,0.2866]
[1742914277309,0.00017028,88095.0,88085.0,0.2866]
[1742914277619,0.00017028,88095.0,88094.0,0.3608]
[1742914277916,0.1135038,88093.0,88085.0,0.29730806]
[1742914278101,0.0999,88092.0,88085.0,0.1846]
[1742914278307,0.1135068,88090.0,88085.0,0.1846]
[1742914278612,0.0999,88089.0,88085.0,0.1846]
[1742914278810,0.10138,88089.0,88085.0,0.1846]
[1742914279013,0.10138,88089.0,88085.0,0.1866]
[1742914280913,0.00148,88089.0,88085.0,0.1866]
[1742914281104,0.09747028,88095.0,88088.0,0.3608]
[1742914281307,8e-05,88092.0,88089.0,0.0972]
[1742914281510,0.09747028,88095.0,88090.0,1.5]
[1742914281712,0.21097128,88095.0,88089.0,0.0928]
[1742914281911,8e-05,88094.0,88089.0,0.0928]
[1742914282111,0.09724001,88094.0,88089.0,0.0928]
[1742914282310,0.19454001,88094.0,88089.0,0.0928]
[1742914282623,0.19454001,88094.0,88089.0,0.1899]
[1742914282918,0.0928,88093.0,88088.0,0.3608]
[1742914283117,0.09436001,88093.0,88088.0,0.3608]
[1742914283416,0.1973,88092.0,88089.0,0.001]
[1742914283619,0.19878,88092.0,88089.0,0.001]
[1742914284420,0.1135066,88090.0,88088.0,0.3608]
[1742914284617,0.1973,88089.0,88088.0,0.3618]
[1742914284816,0.3122879,88089.0,88088.0,0.3618]
[1742914285117,0.19878,88089.0,88088.0,0.3618]
[1742914287218,0.19878,88089.0,88079.0,0.00045414]
[1742914287528,0.19878,88089.0,87990.0,0.10374731]
[1742914287529,0.7216,88085.0,88055.0,0.62794203]
[1742914287816,0.3608,88074.0,88063.0,0.01045422]
[1742914288026,0.298,88073.0,88063.0,0.00045422]
[1742914288225,0.29948,88073.0,88063.0,0.00045422]
[1742914289719,0.30997224,88073.0,88063.0,0.00045422]
[1742914291026,0.31097224,88073.0,88063.0,0.00045422]
[1742914291324,0.20298,88073.0,88067.0,0.3608]
[1742914291544,0.20298,88073.0,88068.0,0.1965]
[1742914292242,0.00248,88073.0,88068.0,0.1965]
[1742914292453,0.001,88073.0,88068.0,0.1965]
[1742914292752,0.001,88073.0,88068.0,0.2065]
[1742914292935,0.102,88094.0,88068.0,0.3695]
[1742914293130,0.3612,88120.0,88087.0,0.7216]
[1742914293329,0.1995,88103.0,88087.0,2.2216]
[1742914293533,0.1995,88103.0,88087.0,2.2316]
[1742914293742,8e-05,88098.0,88087.0,1.8708]
[1742914293944,8e-05,88098.0,88097.0,0.3608]
[1742914294144,0.00164001,88098.0,88097.0,0.37150658]
[1742914294837,0.0004,88120.0,88097.0,0.53982318]
[1742914295040,0.001,88113.0,88099.0,0.1]
[1742914295240,0.0004,88120.0,88112.0,0.7216]
[1742914295437,0.0004,88120.0,88115.0,1.5]
[1742914295638,0.0004,88120.0,88116.0,0.1993]
[1742914295850,0.0004,88120.0,88116.0,0.2199]
[1742914296151,0.26975997,88135.0,88116.0,0.3799]
[1742914296152,0.00017003,88127.0,88116.0,0.3799]
[1742914296339,0.00089003,88127.0,88126.0,0.3608]
[1742914296535,0.00089003,88127.0,88126.0,0.38148]
[1742914297149,0.00089003,88127.0,88126.0,1.88148]
[1742914297847,0.00089003,88127.0,88126.0,2.03148]
[1742914298149,0.00089003,88127.0,88126.0,2.04148]
[1742914298343,0.00089003,88127.0,88126.0,2.14148]
[1742914298543,0.00089003,88127.0,88126.0,2.15181696]
[1742914298734,0.0004,88168.0,88126.0,2.15181696]
[1742914298939,0.1974,88160.0,88135.0,0.4608]
[1742914299140,0.0004,88168.0,88151.0,0.7216]
[1742914299453,0.0978,88167.0,88151.0,0.74224]
[1742914299651,0.0996,88166.0,88151.0,0.74224]
[1742914299852,0.0996,88166.0,88151.0,0.75261256]
[1742914300549,0.0996,88166.0,88151.0,2.25261256]
[1742914301143,0.0034,88152.0,88151.0,2.26102419]
[1742914301353,0.0034,88152.0,88151.0,2.42102419]
[1742914301650,0.0034,88152.0,88151.0,2.27102419]
[1742914301849,0.0064,88152.0,88151.0,2.27102419]
[1742914302047,0.0064,88152.0,88151.0,0.77102419]
[1742914303344,0.0064,88152.0,88151.0,0.76102419]
[1742914303947,0.0064,88152.0,88151.0,0.75261256]
[1742914304245,0.0064,88152.0,88151.0,0.74224]
[1742914304442,0.00704,88152.0,88151.0,0.74224]
[1742914304645,0.0064,88152.0,88151.0,0.74224]
[1742914305149,0.003,88152.0,88151.0,0.74224]
[1742914305347,0.09403889,88156.0,88151.0,0.74224]
[1742914305547,0.1701377,88155.0,88151.0,0.72224]
[1742914305736,0.1134268,88153.0,88151.0,0.72224]
[1742914305937,0.2124268,88152.0,88151.0,0.36144]
[1742914306143,0.2130668,88152.0,88151.0,0.36144]
[1742914306754,0.2130668,88152.0,88151.0,0.00064]
[1742914307045,0.1701544,88146.0,88143.0,0.00062399]
[1742914307254,0.0573973,88146.0,88143.0,0.00130399]
[1742914307550,0.056714,88151.0,88143.0,0.00130399]
[1742914307747,0.00088001,88151.0,88143.0,0.00130399]
[1742914307956,0.1134371,88144.0,88143.0,0.00130399]
[1742914308141,0.11431711,88144.0,88143.0,0.00130399]
[1742914308536,0.00088001,88144.0,88143.0,0.00062399]
[1742914308755,0.10188001,88144.0,88143.0,0.00062399]
[1742914309454,0.21531711,88144.0,88143.0,0.00062399]
[1742914309655,0.21631711,88144.0,88143.0,0.00062399]
[1742914309845,0.32467046,88144.0,88143.0,0.00062399]
[1742914313055,0.32567046,88144.0,88143.0,0.00062399]
[1742914314940,0.21223336,88144.0,88113.0,1.8608]
[1742914315260,0.1134576,88128.0,88118.0,0.37150336]
[1742914315438,0.11405761,88128.0,88118.0,0.37150336]
[1742914316048,0.1134757,88114.0,88113.0,0.3608]
[1742914316341,0.76283761,88128.0,88127.0,0.003]
[1742914316546,0.77214765,88128.0,88127.0,0.003]
[1742914316745,0.77126764,88128.0,88127.0,0.004]
[1742914316953,0.77126764,88128.0,88127.0,0.007]
[1742914317151,0.7817607,88128.0,88127.0,0.007]
[1742914317754,0.7817607,88128.0,88127.0,0.004]
[1742914317954,0.7847607,88128.0,88127.0,0.004]
[1742914318950,0.1702006,88122.0,88119.0,0.00017018]
[1742914319146,0.1996,88121.0,88119.0,0.00113018]
[1742914319345,0.20056001,88121.0,88119.0,0.00113018]
[1742914319555,0.20056001,88121.0,88120.0,0.0966]
[1742914319760,0.20056001,88121.0,88120.0,1.59752]
[1742914320155,0.1996,88121.0,88120.0,1.59752]
[1742914320462,0.0997,88121.0,88120.0,1.59752]
[1742914320661,0.0997,88121.0,88120.0,1.69182]
[1742914320957,0.2131667,88121.0,88120.0,1.50092]
[1742914321159,0.21404671,88121.0,88120.0,0.00092]
[1742914321351,0.1134679,88120.0,88119.0,0.00117018]
[1742914321547,0.21396791,88120.0,88119.0,0.00117018]
[1742914321753,0.31366791,88120.0,88119.0,0.00213018]
[1742914322157,0.67446791,88120.0,88119.0,0.00117018]
[1742914322655,0.67446791,88120.0,88119.0,0.00017018]
[1742914322865,0.1134782,88112.0,88111.0,0.00045397]
[1742914323166,0.1141182,88112.0,88111.0,0.00045397]
[1742914323866,0.3186182,88112.0,88111.0,0.00045397]
[1742914324465,0.32916733,88112.0,88111.0,0.00045397]
[1742914324649,0.32876733,88112.0,88111.0,0.00045397]
[1742914325961,0.32976733,88112.0,88111.0,0.00045397]
[1742914328167,0.69056733,88112.0,88111.0,0.00045397]
[1742914329059,0.0567436,88106.0,88083.0,0.36674203]
[1742914329261,0.0567436,88106.0,88095.0,0.00141405]
[1742914329262,0.1134986,88097.0,88095.0,0.00141405]
[1742914329462,0.11437861,88097.0,88096.0,0.1006]
[1742914329662,0.11437861,88097.0,88096.0,0.10148]
[1742914330065,0.00088001,88097.0,88096.0,0.46228]
[1742914330260,0.1702349,88104.0,88096.0,0.55808]
[1742914330461,0.00060001,88104.0,88096.0,0.55808]
[1742914330660,0.00017018,88105.0,88096.0,0.55808]
[1742914330862,0.00105019,88105.0,88104.0,0.3608]
[1742914331070,0.001,88112.0,88104.0,0.36172]
[1742914331367,0.00048,88120.0,88110.0,0.1]
[1742914331563,0.00048,88120.0,88119.0,0.3608]
[1742914331769,0.0004,88120.0,88119.0,0.36172]
[1742914332556,0.00017018,88128.0,88119.0,0.73252]
[1742914332757,0.00017018,88128.0,88127.0,0.3608]
[1742914333063,0.00017018,88128.0,88127.0,0.36168]
[1742914334254,0.00017018,88128.0,88127.0,0.36368]
[1742914334461,0.0004,88136.0,88127.0,0.36368]
[1742914334664,0.0004,88136.0,88135.0,0.3608]
[1742914334971,0.0004,88136.0,88135.0,1.86168]
[1742914335463,0.0004,88136.0,88135.0,0.36168]
[1742914337075,0.00128001,88136.0,88135.0,0.37258097]
[1742914337261,0.0004,88136.0,88135.0,0.37258097]
[1742914338761,0.0004,88136.0,88135.0,0.36168]
[1742914338962,0.0004,88136.0,88135.0,1.86168]
[1742914339162,0.0004,88136.0,88135.0,0.37247666]
[1742914339361,0.0004,88136.0,88135.0,0.37347666]
[1742914339869,0.1138473,88136.0,88135.0,0.36268]
[1742914340065,0.36208001,88136.0,88135.0,0.00188]
[1742914340281,0.00128001,88136.0,88135.0,0.001]
[1742914340571,0.0004,88136.0,88127.0,0.01069023]
[1742914340870,0.0004,88136.0,88135.0,0.001]
[1742914341258,0.0004,88136.0,88135.0,0.3618]
[1742914341572,0.0004,88136.0,88135.0,0.36368]
[1742914341871,0.00104,88136.0,88135.0,0.00288]
[1742914342071,0.0004,88136.0,88135.0,0.002]
[1742914342467,0.00100001,88136.0,88135.0,0.002]
[1742914342962,0.0004,88136.0,88135.0,0.001]
[1742914343159,0.1134679,88120.0,88119.0,0.20174701]
[1742914343358,0.1134731,88116.0,88078.0,0.3608]
[1742914343671,0.11407311,88116.0,88115.0,0.26774203]
[1742914344562,0.11407311,88116.0,88115.0,0.0006]
[1742914344776,0.113477,88113.0,88112.0,0.33535587]
[1742914345072,0.11407701,88113.0,88112.0,0.33595587]
[1742914345271,0.1134989,88096.0,88087.0,0.56385865]
[1742914345466,0.4750589,88096.0,88087.0,0.56385865]
[1742914346467,0.4750589,88096.0,88087.0,0.67753893]
[1742914346883,0.4750589,88096.0,88087.0,0.56402883]
[1742914347173,0.36156,88096.0,88087.0,0.56402883]
[1742914347371,0.4750589,88096.0,88087.0,0.56402883]
[1742914347559,0.4750589,88096.0,88087.0,0.00017018]
[1742914347764,0.4750589,88096.0,88095.0,0.00345405]
[1742914347960,0.36156,88096.0,88095.0,0.00345405]
[1742914348171,0.36156,88096.0,88095.0,0.00405405]
[1742914348475,0.4742589,88096.0,88095.0,0.00405405]
[1742914348881,0.4742589,88096.0,88095.0,1.50405405]
[1742914349775,0.4742589,88096.0,88095.0,0.00405405]
[1742914349969,0.4742589,88096.0,88087.0,0.00017018]
[1742914349970,0.1135092,88088.0,88087.0,0.00017018]
[1742914350173,0.1135195,88080.0,88079.0,0.00045414]
[1742914350470,0.4750795,88080.0,88079.0,0.00045414]
[1742914351267,0.1135401,88064.0,88058.0,0.26768518]
[1742914351469,0.3608,88064.0,88063.0,0.00121422]
[1742914351671,0.36156,88064.0,88063.0,0.00121422]
[1742914352067,0.00076,88064.0,88063.0,0.00121422]
[1742914352270,8e-05,88069.0,88063.0,0.00121422]
[1742914352577,0.00088,88069.0,88063.0,0.00121422]
[1742914353172,0.0008,88069.0,88063.0,0.00121422]
[1742914353570,0.36097028,88072.0,88063.0,0.00121422]
[1742914353764,0.47526108,88072.0,88063.0,0.00121422]
[1742914353967,0.36173028,88072.0,88063.0,0.00121422]
[1742914354777,0.001,88064.0,88063.0,0.00121422]
[1742914355876,0.001,88064.0,88063.0,0.00621422]
[1742914356073,0.1145401,88064.0,88063.0,0.00621422]
[1742914356277,0.00176,88064.0,88063.0,0.00621422]
[1742914358481,0.001,88064.0,88063.0,0.00621422]
[1742914358679,0.0567568,88085.0,88063.0,0.00621422]
[1742914358873,8e-05,88069.0,88064.0,1.5]
[1742914359074,8e-05,88069.0,88064.0,1.5006]
[1742914359777,0.3608,88071.0,88064.0,0.0006]
[1742914360077,0.36156,88071.0,88064.0,0.0006]
[1742914360470,0.00017028,88072.0,88064.0,0.0006]
[1742914360682,0.00017028,88072.0,88065.0,0.3608]
[1742914360874,0.00017028,88072.0,88065.0,0.3614]
[1742914361269,0.00017028,88072.0,88065.0,0.3714]
[1742914363781,0.001,88069.0,88065.0,0.3714]
[1742914365183,0.00017028,88072.0,88065.0,0.3714]
[1742914365184,0.00017028,88072.0,88065.0,0.3814]
[1742914365990,0.00017028,88072.0,88065.0,0.3864]
[1742914366688,8e-05,88077.0,88065.0,0.3864]
[1742914366886,8e-05,88077.0,88075.0,0.3608]
[1742914367190,8e-05,88077.0,88075.0,0.3614]
[1742914368589,8e-05,88077.0,88075.0,0.3634]
[1742914368986,8e-05,88077.0,88076.0,1.5]
[1742914369195,8e-05,88077.0,88076.0,0.0006]
[1742914371593,8e-05,88077.0,88076.0,0.0026]
[1742914372194,8e-05,88077.0,88076.0,0.0046]
[1742914372394,0.00084,88077.0,88076.0,0.0046]
[1742914372590,8e-05,88077.0,88076.0,0.0046]
[1742914372997,0.00088,88077.0,88076.0,0.0046]
[1742914373294,8e-05,88077.0,88076.0,0.0046]
[1742914373689,0.00088,88077.0,88076.0,0.0046]
[1742914374087,8e-05,88077.0,88076.0,0.0046]
[1742914375088,0.00084,88077.0,88076.0,0.0046]
[1742914375597,8e-05,88077.0,88076.0,0.004]
[1742914377188,0.36164,88077.0,88076.0,0.004]
[1742914377595,0.00084,88077.0,88076.0,0.004]
[1742914377803,0.4751633,88077.0,88076.0,0.004]
[1742914378590,0.36164,88077.0,88076.0,0.004]
[1742914379694,0.4751633,88077.0,88076.0,0.004]
[1742914383098,0.36164,88077.0,88076.0,0.004]
[1742914383296,0.36164,88077.0,88076.0,0.01456508]
[1742914383498,0.00076,88077.0,88076.0,0.01456508]
[1742914383698,0.0567572,88084.0,88076.0,0.004]
[1742914383895,0.1136014,88079.0,88076.0,0.004]
[1742914384098,0.1143614,88079.0,88076.0,0.004]
[1742914384299,0.1710424,88079.0,88076.0,0.004]
[1742914384600,0.1135233,88077.0,88076.0,0.004]
[1742914384794,0.4743233,88077.0,88076.0,0.004]
[1742914384994,0.4751633,88077.0,88076.0,0.004]
[1742914388206,0.4751633,88077.0,88076.0,0.002]
[1742914388404,0.4751633,88077.0,88076.0,0.004]
[1742914389994,0.4751633,88077.0,88076.0,0.002]
[1742914389995,0.1143633,88077.0,88076.0,0.002]
[1742914390194,0.1143633,88077.0,88076.0,0.1175246]
[1742914390394,0.1143633,88077.0,88076.0,0.1181246]
[1742914390899,0.1143633,88077.0,88076.0,0.0046]
[1742914391210,0.1143633,88077.0,88076.0,0.1175246]
[1742914391404,0.1143633,88077.0,88076.0,0.1182046]
[1742914391902,0.1143633,88077.0,88076.0,0.00468]
[1742914392106,0.1143633,88077.0,88076.0,0.1181246]
[1742914394600,0.00084,88077.0,88076.0,0.1181246]
[1742914394801,8e-05,88079.0,88078.0,0.1135221]
[1742914395002,0.1135202,88084.0,88083.0,0.1702721]
[1742914395203,0.1142802,88084.0,88083.0,0.1708721]
[1742914395412,0.5885962,88084.0,88083.0,0.0006]
[1742914395710,0.1702805,88080.0,88079.0,0.1135205]
[1742914395902,0.1710405,88080.0,88079.0,0.1141205]
[1742914396408,0.1710405,88080.0,88079.0,0.1141208]
[1742914397101,0.1710405,88080.0,88079.0,0.0006]
[1742914397501,0.1710405,88080.0,88079.0,0.1135208]
[1742914397706,0.1710405,88080.0,88079.0,0.1141608]
[1742914398100,0.1710405,88080.0,88079.0,0.1151608]
[1742914398704,0.1710405,88080.0,88079.0,0.00164]
[1742914399112,0.1710405,88080.0,88079.0,0.001]
[1742914399308,0.1710405,88080.0,88079.0,0.00168]
[1742914399514,0.1135401,88064.0,88057.0,0.1135482]
[1742914399812,0.4751401,88064.0,88063.0,0.00105422]
[1742914400609,0.1135543,88053.0,88052.0,0.26768518]
[1742914400810,0.1143143,88053.0,88052.0,0.26828518]
[1742914401004,0.1135607,88048.0,88047.0,0.0004543]
[1742914401196,0.1144807,88048.0,88047.0,0.0010543]
[1742914402214,0.12312154,88048.0,88047.0,0.0010543]
[1742914403903,0.12412154,88048.0,88047.0,0.0060543]
[1742914405115,0.68362154,88048.0,88047.0,0.0060543]
[1742914405307,0.1135633,88046.0,88045.0,0.33564589]
[1742914405508,0.1135633,88046.0,88045.0,0.00112]
[1742914405509,0.88498331,88046.0,88045.0,0.00112]
[1742914405709,0.0567838,88043.0,88030.0,8e-05]
[1742914405911,0.1135891,88026.0,87991.0,0.3608]
[1742914406113,0.0567997,88018.0,87991.0,0.3608]
[1742914406410,0.0567997,88018.0,88001.0,0.01103895]
[1742914406411,0.474402,88016.0,88001.0,0.01103895]
[1742914406611,0.475842,88016.0,88001.0,0.01103895]
[1742914406816,0.48636726,88016.0,88007.0,0.00017038]
[1742914407420,0.48636726,88016.0,88014.0,8e-05]
[1742914407611,0.48636726,88016.0,88007.0,0.00017038]
[1742914407912,0.48636726,88016.0,88015.0,0.00445447]
[1742914410324,0.48636726,88016.0,88015.0,0.00589447]
[1742914410514,0.48636726,88016.0,88015.0,0.00445447]
[1742914418723,0.48736726,88016.0,88015.0,0.00045447]
[1742914419719,0.36324,88016.0,88015.0,0.00045447]
[1742914420029,0.476842,88016.0,88015.0,0.00105447]
[1742914420230,0.48739456,88016.0,88015.0,0.00105447]
[1742914421124,0.48739456,88016.0,88015.0,0.00649447]
[1742914421322,0.475842,88016.0,88015.0,0.00649447]
[1742914424333,0.475842,88016.0,88015.0,0.00589447]
[1742914425827,0.476842,88016.0,88015.0,0.00589447]
[1742914427430,0.1136123,88008.0,88007.0,0.00017038]
[1742914427634,0.056815,87995.0,87976.0,0.3608]
[1742914427821,0.36232,88008.0,87976.0,0.3608]
[1742914427822,0.1136433,87984.0,87983.0,0.00105463]
[1742914428026,0.1151233,87984.0,87983.0,0.00105463]
[1742914429233,0.1161233,87984.0,87983.0,0.00405463]
[1742914429730,0.12697636,87984.0,87983.0,0.00405463]
[1742914430035,0.12577636,87984.0,87983.0,0.00405463]
[1742914430940,0.21427636,87984.0,87983.0,0.00405463]
[1742914431840,0.21327636,87984.0,87983.0,0.00105463]
[1742914432031,0.01233306,87984.0,87983.0,0.00205463]
[1742914432233,0.1704641,87986.0,87983.0,0.00205463]
[1742914432431,0.1150818,87986.0,87984.0,0.1723]
[1742914432625,0.1150818,87986.0,87984.0,0.1729]
[1742914433641,0.1150818,87986.0,87984.0,0.1739]
[1742914434231,0.0582608,87986.0,87984.0,0.1739]
[1742914435235,0.1719028,87986.0,87984.0,0.1739]
[1742914435838,0.1719028,87986.0,87985.0,1.6136386]
[1742914436047,0.1719028,87986.0,87985.0,1.6142386]
[1742914436343,0.1719028,87986.0,87985.0,1.6815]
[1742914437145,0.1704628,87986.0,87985.0,1.6815]
[1742914437339,0.1704628,87986.0,87985.0,1.6835]
[1742914437534,0.1704628,87986.0,87985.0,0.1835]
[1742914437745,0.1719028,87986.0,87985.0,0.1835]
[1742914438151,0.2627028,87986.0,87985.0,0.1835]
[1742914438355,0.3532028,87986.0,87985.0,0.0971]
[1742914438652,0.3532028,87986.0,87985.0,0.0965]
[1742914438954,0.2627028,87986.0,87985.0,0.0965]
[1742914439148,0.0582608,87986.0,87985.0,0.0971]
[1742914439350,0.00144,87986.0,87985.0,0.4679]
[1742914439855,0.0568197,87988.0,87985.0,0.4679]
[1742914440155,0.1704605,87987.0,87986.0,0.0933]
[1742914440346,0.1719005,87987.0,87986.0,0.10398]
[1742914440544,0.1719005,87987.0,87986.0,0.19028]